fUST/lending_fUST_20250206
["ID","MTS","AMOUNT","RATE_DAILY","PERIOD"]
[351737769,1738771844520,-2909.99,0.00015387,2]
[351737771,1738771844530,-644.66,0.00015387,2]
[351737773,1738771844539,-500.0,0.00015388,2]
[351737775,1738771844549,-500.0,0.00015388,2]
[351737777,1738771844562,-559.34,0.00015388,2]
[351737779,1738771844571,-829.94,0.00015388,2]
[351737781,1738771844580,-1100.55,0.00015388,2]
[351737783,1738771844590,-500.0,0.00015388,2]
[351737785,1738771844599,-500.0,0.00015388,2]
[351737787,1738771844610,-500.0,0.00015388,2]
[351737789,1738771844620,-503.67470793,0.00015388,2]
[351737791,1738771844629,-500.0,0.00015388,2]
[351737793,1738771844639,-512.02638768,0.00015388,2]
[351737795,1738771844648,-500.0,0.00015388,2]
[351737797,1738771844658,-500.0,0.00015388,2]
[351737799,1738771844668,-560.98,0.00015388,2]
[351737801,1738771844677,-500.0,0.00015388,2]
[351737803,1738771844687,-609.68815644,0.00015388,2]
[351737805,1738771844697,-3101.36,0.00015388,2]
[351737806,1738771844706,-2010.42,0.00015388,2]
[351737808,1738771844716,-502.58133081,0.00015388,2]
[351737810,1738771844734,-500.0,0.00015388,2]
[351737812,1738771844743,-500.0,0.00015388,2]
[351737814,1738771844753,-500.0,0.00015388,2]
[351737816,1738771844763,-508.9,0.00015388,2]
[351737818,1738771844773,-524.8,0.00015388,2]
[351737820,1738771844783,-500.0,0.00015388,2]
[351737822,1738771844792,-500.0,0.00015388,2]
[351737824,1738771844802,-570.13,0.00015388,2]
[351737826,1738771844814,-500.0,0.00015388,2]
[351737828,1738771844823,-1519.94,0.00015388,2]
[351737829,1738771844832,-500.0,0.00015388,2]
[351737831,1738771844841,-610.0,0.00015388,2]
[351737833,1738771844851,-500.0,0.00015388,2]
[351737835,1738771844861,-500.0,0.00015388,2]
[351737837,1738771844872,-1431.74,0.00015388,2]
[351737838,1738771844882,-500.0,0.00015388,2]
[351737839,1738771844893,-1015.27,0.00015388,2]
[351737840,1738771844903,-500.0,0.00015388,2]
[351737841,1738771844913,-500.0,0.00015388,2]
[351737842,1738771844923,-500.0,0.00015388,2]
[351737843,1738771844933,-2396.13,0.00015388,2]
[351737844,1738771844942,-500.0,0.00015388,2]
[351737845,1738771844952,-500.0,0.00015388,2]
[351737846,1738771844961,-500.0,0.00015388,2]
[351737847,1738771844971,-1110.03,0.00015388,2]
[351737848,1738771844982,-500.0,0.00015388,2]
[351737849,1738771844991,-500.0,0.00015388,2]
[351737850,1738771845002,-500.0,0.00015388,2]
[351737851,1738771845012,-524.46,0.00015388,2]
[351737852,1738771845022,-500.0,0.00015388,2]
[351737853,1738771845032,-500.0,0.00015388,2]
[351737854,1738771845041,-500.0,0.00015388,2]
[351737855,1738771845051,-500.0,0.00015388,2]
[351737856,1738771845063,-500.0,0.00015388,2]
[351737857,1738771845073,-500.0,0.00015388,2]
[351737859,1738771845083,-212.5502707,0.00015388,2]
[351737861,1738771845093,-500.0,0.00015388,2]
[351737863,1738771845104,-500.0,0.00015388,2]
[351737865,1738771845114,-547.19,0.00015388,2]
[351737867,1738771845124,-1651.64,0.00015388,2]
[351737869,1738771845134,-500.0,0.00015388,2]
[351737871,1738771845145,-1859.31,0.00015388,2]
[351737873,1738771845154,-500.0,0.00015388,2]
[351737875,1738771845164,-500.0,0.00015388,2]
[351737877,1738771845175,-648.66,0.00015388,2]
[351737879,1738771845186,-500.0,0.00015388,2]
[351737881,1738771845196,-500.0,0.00015388,2]
[351737883,1738771845206,-500.0,0.00015388,2]
[351737885,1738771845216,-760.92,0.00015388,2]
[351737887,1738771845228,-493.45515902,0.00015388,2]
[351737889,1738771845238,-500.0,0.00015388,2]
[351737891,1738771845248,-540.13,0.00015388,2]
[351737893,1738771845258,-500.0,0.00015388,2]
[351737895,1738771845269,-732.91,0.00015388,2]
[351737897,1738771845278,-500.0,0.00015388,2]
[351737899,1738771845288,-500.0,0.00015388,2]
[351737901,1738771845297,-1759.5,0.00015388,2]
[351737903,1738771845309,-500.0,0.00015388,2]
[351737905,1738771845319,-1519.14,0.00015388,2]
[351737907,1738771845329,-500.0,0.00015388,2]
[351737908,1738771845338,-500.0,0.00015388,2]
[351737910,1738771845347,-1156.83,0.00015388,2]
[351737912,1738771845357,-815.58,0.00015388,2]
[351737915,1738771845369,-928.75,0.00015388,2]
[351737917,1738771845383,-500.0,0.00015388,2]
[351737919,1738771845392,-500.0,0.00015388,2]
[351737920,1738771845402,-500.0,0.00015388,2]
[351737922,1738771845412,-500.0,0.00015388,2]
[351737924,1738771845421,-1013.33,0.00015388,2]
[351737926,1738771845430,-1557.86,0.00015388,2]
[351737928,1738771845441,-500.0,0.00015388,2]
[351737930,1738771845453,-500.0,0.00015388,2]
[351737932,1738771845463,-500.0,0.00015388,2]
[351737934,1738771845473,-686.6,0.00015388,2]
[351737936,1738771845482,-687.85,0.00015388,2]
[351737938,1738771845492,-1229.79,0.00015388,2]
[351737940,1738771845501,-500.0,0.00015388,2]
[351737942,1738771845514,-702.48,0.00015388,2]
[351737945,1738771845525,-517.78911673,0.00015388,2]
[351737946,1738771845534,-506.91672502,0.00015388,2]
[351737948,1738771845544,-1082.77,0.00015388,2]
[351737950,1738771845554,-542.72,0.00015388,2]
[351737952,1738771845565,-2020.19,0.00015388,2]
[351737954,1738771845575,-516.45699356,0.00015388,2]
[351737956,1738771845584,-500.0,0.00015388,2]
[351737958,1738771845594,-500.0,0.00015388,2]
[351737960,1738771845605,-500.0,0.00015388,2]
[351737962,1738771845615,-500.0,0.00015388,2]
[351737964,1738771845625,-500.0,0.00015388,2]
[351737966,1738771845635,-609.77,0.00015388,2]
[351737968,1738771845645,-500.0,0.00015388,2]
[351737970,1738771845655,-514.21875713,0.00015388,2]
[351737972,1738771845665,-500.0,0.00015388,2]
[351737987,1738771845804,-504.63112114,0.00015388,2]
[351737989,1738771845816,-840.61,0.00015388,2]
[351737991,1738771845826,-500.0,0.00015388,2]
[351737993,1738771845836,-500.0,0.00015388,2]
[351737995,1738771845846,-500.0,0.00015388,2]
[351737997,1738771845856,-500.0,0.00015388,2]
[351737999,1738771845865,-638.72,0.00015388,2]
[351738001,1738771845874,-500.0,0.00015388,2]
[351738003,1738771845883,-500.0,0.00015388,2]
[351738005,1738771845893,-500.0,0.00015388,2]
[351738007,1738771845902,-812.3,0.00015388,2]
[351738009,1738771845912,-788.16,0.00015388,2]
[351738011,1738771845921,-500.0,0.00015388,2]
[351738013,1738771845931,-500.0,0.00015388,2]
[351738015,1738771845941,-500.0,0.00015388,2]
[351738017,1738771845950,-2928.28,0.00015388,2]
[351738019,1738771845960,-820.61,0.00015388,2]
[351738021,1738771845970,-542.81,0.00015388,2]
[351738023,1738771845980,-3407.39,0.00015388,2]
[351738025,1738771845989,-500.0,0.00015388,2]
[351738027,1738771845999,-8551.82,0.00015388,2]
[351738029,1738771846009,-500.0,0.00015388,2]
[351738031,1738771846019,-500.0,0.00015388,2]
[351738034,1738771846028,-500.0,0.00015388,2]
[351738037,1738771846038,-534.5336951,0.00015388,2]
[351738040,1738771846047,-500.0,0.00015388,2]
[351738042,1738771846057,-691.63,0.00015388,2]
[351738045,1738771846069,-500.0,0.00015388,2]
[351738048,1738771846079,-4475.16,0.00015388,2]
[351738051,1738771846089,-500.0,0.00015388,2]
[351738054,1738771846098,-500.0,0.00015388,2]
[351738057,1738771846109,-500.0,0.00015388,2]
[351738060,1738771846118,-3103.75,0.00015388,2]
[351738063,1738771846128,-500.0,0.00015388,2]
[351738065,1738771846139,-500.0,0.00015388,2]
[351738067,1738771846149,-500.0,0.00015388,2]
[351738069,1738771846159,-500.0,0.00015388,2]
[351738071,1738771846170,-500.0,0.00015388,2]
[351738073,1738771846180,-681.05,0.00015388,2]
[351738076,1738771846190,-500.0,0.00015388,2]
[351738079,1738771846199,-500.0,0.00015388,2]
[351738082,1738771846209,-500.0,0.00015388,2]
[351738085,1738771846218,-500.0,0.00015388,2]
[351738088,1738771846228,-500.0,0.00015388,2]
[351738090,1738771846238,-536.76494534,0.00015388,2]
[351738093,1738771846248,-603.73,0.00015388,2]
[351738096,1738771846258,-2920.72,0.00015388,2]
[351738099,1738771846268,-500.0,0.00015388,2]
[351738102,1738771846279,-1185.03,0.00015388,2]
[351738105,1738771846288,-500.0,0.00015388,2]
[351738108,1738771846299,-500.0,0.00015388,2]
[351738111,1738771846310,-564.60401182,0.00015388,2]
[351738114,1738771846320,-500.0,0.00015388,2]
[351738117,1738771846330,-4093.35,0.00015388,2]
[351738120,1738771846340,-500.0,0.00015388,2]
[351738123,1738771846349,-500.0,0.00015388,2]
[351738126,1738771846359,-1477.43,0.00015388,2]
[351738129,1738771846373,-500.0,0.00015388,2]
[351738132,1738771846384,-500.0,0.00015388,2]
[351738135,1738771846394,-703.77,0.00015388,2]
[351738138,1738771846404,-500.0,0.00015388,2]
[351738141,1738771846414,-500.0,0.00015388,2]
[351738144,1738771846423,-500.0,0.00015388,2]
[351738147,1738771846433,-1006.23,0.00015388,2]
[351738150,1738771846442,-1401.79,0.00015388,2]
[351738153,1738771846454,-500.0,0.00015388,2]
[351738156,1738771846465,-500.0,0.00015388,2]
[351738159,1738771846475,-500.0,0.00015388,2]
[351738162,1738771846485,-500.0,0.00015388,2]
[351738166,1738771846495,-500.0,0.00015388,2]
[351738170,1738771846506,-151.0,0.00015388,2]
[351738173,1738771846516,-500.0,0.00015388,2]
[351738176,1738771846526,-151.0,0.00015388,2]
[351738178,1738771846537,-743.02,0.00015388,2]
[351738182,1738771846548,-552.47,0.00015388,2]
[351738183,1738771846562,-1377.9,0.00015388,2]
[351738187,1738771846573,-690.33,0.00015388,2]
[351738189,1738771846583,-160.82808555,0.00015388,2]
[351738192,1738771846593,-500.0,0.00015388,2]
[351738196,1738771846604,-500.0,0.00015388,2]
[351738199,1738771846614,-500.0,0.00015388,2]
[351738202,1738771846624,-8576.08,0.00015388,2]
[351738205,1738771846635,-508.1595289,0.00015388,2]
[351738208,1738771846645,-1722.46,0.00015388,2]
[351738211,1738771846654,-500.0,0.00015388,2]
[351738214,1738771846664,-500.0,0.00015388,2]
[351738217,1738771846674,-1584.62,0.00015388,2]
[351738220,1738771846685,-407.41946547,0.00015388,2]
[351738223,1738771846695,-500.0,0.00015388,2]
[351738226,1738771846705,-500.0,0.00015388,2]
[351738229,1738771846715,-631.98,0.00015388,2]
[351738232,1738771846725,-500.0,0.00015388,2]
[351738235,1738771846736,-500.0,0.00015388,2]
[351738239,1738771846747,-500.0,0.00015388,2]
[351738241,1738771846757,-500.0,0.00015388,2]
[351738244,1738771846768,-500.0,0.00015388,2]
[351738247,1738771846778,-151.0,0.00015388,2]
[351738250,1738771846788,-500.0,0.00015388,2]
[351738253,1738771846798,-1031.17,0.00015388,2]
[351738255,1738771846812,-3062.68,0.00015388,2]
[351738257,1738771846822,-500.0,0.00015388,2]
[351738259,1738771846833,-500.0,0.00015388,2]
[351738261,1738771846843,-500.0,0.00015388,2]
[351738262,1738771846853,-500.0,0.00015388,2]
[351738264,1738771846863,-500.0,0.00015388,2]
[351738266,1738771846874,-151.0,0.00015388,2]
[351738269,1738771846884,-500.0,0.00015388,2]
[351738271,1738771846895,-500.0,0.00015388,2]
[351738273,1738771846905,-500.0,0.00015388,2]
[351738274,1738771846914,-1743.33,0.00015388,2]
[351738277,1738771846924,-1209.72,0.00015388,2]
[351738279,1738771846934,-500.0,0.00015388,2]
[351738281,1738771846945,-1536.72,0.00015388,2]
[351738283,1738771846954,-523.90169399,0.00015388,2]
[351738284,1738771846963,-500.0,0.00015388,2]
[351738286,1738771846973,-500.0,0.00015388,2]
[351738288,1738771846982,-500.0,0.00015388,2]
[351738290,1738771846991,-635.25,0.00015388,2]
[351738292,1738771847000,-500.0,0.00015388,2]
[351738294,1738771847010,-500.0,0.00015388,2]
[351738296,1738771847019,-869.69,0.00015388,2]
[351738298,1738771847029,-500.0,0.00015388,2]
[351738300,1738771847039,-157.43,0.00015388,2]
[351738302,1738771847048,-151.0,0.00015389,2]
[351738304,1738771847060,-151.0,0.00015389,2]
[351738306,1738771847070,-151.0,0.00015389,2]
[351738308,1738771847080,-151.0,0.00015389,2]
[351738310,1738771847089,-151.0,0.00015389,2]
[351738312,1738771847099,-151.0,0.00015389,2]
[351738314,1738771847109,-500.0,0.00015389,2]
[351738316,1738771847119,-8064.56,0.00015389,2]
[351738318,1738771847128,-151.0,0.00015389,2]
[351738320,1738771847137,-500.0,0.00015389,2]
[351738322,1738771847147,-500.0,0.00015389,2]
[351738324,1738771847156,-2824.03,0.00015389,2]
[351738326,1738771847166,-151.0,0.00015389,2]
[351738328,1738771847176,-121803.03,0.00015389,2]
[351738330,1738771847185,-5072.52,0.00015389,2]
[351738332,1738771847195,-3053.28,0.00015389,2]
[351738334,1738771847205,-39760.03,0.00015389,2]
[351738336,1738771847215,-500.0,0.00015389,2]
[351738338,1738771847225,-795.18,0.00015389,2]
[351738340,1738771847234,-5635.6,0.00015389,2]
[351738342,1738771847243,-671.02,0.00015389,2]
[351738344,1738771847253,-2087.79,0.00015389,2]
[351738346,1738771847263,-151.0,0.00015389,2]
[351738348,1738771847273,-151.0,0.00015389,2]
[351738350,1738771847283,-500.0,0.00015389,2]
[351738352,1738771847293,-156.871716,0.00015389,2]
[351738353,1738771847303,-605.75,0.00015389,2]
[351738356,1738771847316,-151.0,0.00015389,2]
[351738357,1738771847326,-500.0,0.0001539,2]
[351738360,1738771847336,-671.61,0.0001539,2]
[351738362,1738771847346,-500.0,0.0001539,2]
[351738363,1738771847356,-523.51,0.0001539,2]
[351738365,1738771847367,-500.0,0.0001539,2]
[351738367,1738771847380,-222.15928418,0.0001539,2]
[351738369,1738771847396,-549.36,0.0001539,2]
[351738371,1738771847406,-778.51,0.0001539,2]
[351738373,1738771847416,-500.0,0.0001539,2]
[351738375,1738771847429,-576.27,0.0001539,2]
[351738377,1738771847439,-1817.95,0.0001539,2]
[351738379,1738771847449,-500.0,0.0001539,2]
[351738381,1738771847460,-500.0,0.0001539,2]
[351738383,1738771847470,-500.0,0.0001539,2]
[351738386,1738771847480,-862.5,0.0001539,2]
[351738388,1738771847490,-952.08,0.0001539,2]
[351738390,1738771847501,-382.75378,0.0001539,2]
[351738391,1738771847510,-2319.35,0.0001539,2]
[351738392,1738771847519,-500.0,0.0001539,2]
[351738393,1738771847529,-500.0,0.0001539,2]
[351738394,1738771847539,-505.14936998,0.0001539,2]
[351738395,1738771847549,-500.0,0.0001539,2]
[351738396,1738771847560,-500.0,0.0001539,2]
[351738398,1738771847570,-690.89,0.0001539,2]
[351738400,1738771847580,-500.0,0.0001539,2]
[351738402,1738771847591,-1105.71,0.0001539,2]
[351738404,1738771847601,-500.0,0.0001539,2]
[351738406,1738771847612,-500.0,0.0001539,2]
[351738408,1738771847622,-569.07,0.0001539,2]
[351738410,1738771847631,-151.0,0.0001539,2]
[351738412,1738771847641,-151.0,0.0001539,2]
[351738414,1738771847650,-1304.48,0.0001539,2]
[351738416,1738771847661,-500.0,0.0001539,2]
[351738418,1738771847671,-3826.77,0.0001539,2]
[351738420,1738771847681,-500.0,0.0001539,2]
[351738422,1738771847692,-500.0,0.0001539,2]
[351738424,1738771847702,-4263.61,0.0001539,2]
[351738427,1738771847722,-692.68,0.0001539,2]
[351738429,1738771847732,-500.0,0.0001539,2]
[351738431,1738771847742,-500.0,0.0001539,2]
[351738433,1738771847752,-855.31,0.0001539,2]
[351738435,1738771847762,-2957.64,0.0001539,2]
[351738437,1738771847772,-500.0,0.0001539,2]
[351738439,1738771847782,-500.0,0.0001539,2]
[351738441,1738771847793,-637.22,0.0001539,2]
[351738444,1738771847805,-1142.54,0.0001539,2]
[351738446,1738771847824,-500.0,0.0001539,2]
[351738448,1738771847835,-2129.92,0.0001539,2]
[351738450,1738771847847,-959.12,0.0001539,2]
[351738452,1738771847856,-500.0,0.0001539,2]
[351738454,1738771847868,-500.0,0.0001539,2]
[351738456,1738771847879,-1315.79,0.0001539,2]
[351738458,1738771847889,-500.0,0.0001539,2]
[351738460,1738771847900,-500.0,0.0001539,2]
[351738462,1738771847909,-500.0,0.0001539,2]
[351738464,1738771847918,-1143.65,0.0001539,2]
[351738466,1738771847927,-500.0,0.0001539,2]
[351738468,1738771847937,-500.0,0.0001539,2]
[351738470,1738771847945,-500.0,0.0001539,2]
[351738472,1738771847955,-538.94,0.0001539,2]
[351738474,1738771847964,-680.93,0.0001539,2]
[351738476,1738771847973,-500.0,0.0001539,2]
[351738478,1738771847983,-500.0,0.0001539,2]
[351738480,1738771847992,-704.57,0.0001539,2]
[351738482,1738771848002,-2063.8,0.0001539,2]
[351738484,1738771848011,-151.0,0.0001539,2]
[351738486,1738771848020,-500.0,0.00015391,2]
[351738488,1738771848028,-790.27,0.00015391,2]
[351738490,1738771848038,-500.0,0.00015391,2]
[351738492,1738771848048,-500.0,0.00015391,2]
[351738494,1738771848059,-500.0,0.00015391,2]
[351738496,1738771848072,-528.49364949,0.00015391,2]
[351738498,1738771848082,-500.0,0.00015391,2]
[351738500,1738771848093,-500.0,0.00015391,2]
[351738502,1738771848105,-500.0,0.00015391,2]
[351738504,1738771848117,-500.0,0.00015391,2]
[351738506,1738771848130,-500.0,0.00015391,2]
[351738508,1738771848141,-500.0,0.00015391,2]
[351738510,1738771848152,-500.0,0.00015391,2]
[351738513,1738771848163,-500.0,0.00015391,2]
[351738515,1738771848174,-500.0,0.00015391,2]
[351738517,1738771848186,-1208.5,0.00015391,2]
[351738519,1738771848197,-500.0,0.00015391,2]
[351738521,1738771848209,-534.85,0.00015391,2]
[351738523,1738771848219,-500.0,0.00015391,2]
[351738525,1738771848230,-862.52,0.00015391,2]
[351738527,1738771848240,-500.0,0.00015391,2]
[351738529,1738771848251,-500.0,0.00015391,2]
[351738531,1738771848262,-500.0,0.00015391,2]
[351738533,1738771848285,-500.0,0.00015391,2]
[351738536,1738771848298,-728.51,0.00015391,2]
[351738538,1738771848313,-500.0,0.00015391,2]
[351738540,1738771848323,-500.0,0.00015391,2]
[351738542,1738771848334,-629.17,0.00015391,2]
[351738544,1738771848344,-1199.02,0.00015391,2]
[351738546,1738771848355,-210.42243857,0.00015391,2]
[351738548,1738771848367,-500.0,0.00015391,2]
[351738550,1738771848379,-907.18,0.00015391,2]
[351738552,1738771848391,-500.0,0.00015391,2]
[351738554,1738771848402,-313.95501091,0.00015391,2]
[351738556,1738771848415,-500.0,0.00015391,2]
[351738575,1738771848621,-500.0,0.00015391,2]
[351738577,1738771848634,-500.0,0.00015391,2]
[351738579,1738771848647,-542.4,0.00015391,2]
[351738581,1738771848658,-500.0,0.00015391,2]
[351738583,1738771848669,-500.0,0.00015391,2]
[351738585,1738771848680,-500.0,0.00015391,2]
[351738587,1738771848691,-500.0,0.00015391,2]
[351738590,1738771848703,-502.5275146,0.00015391,2]
[351738591,1738771848714,-643.46,0.00015391,2]
[351738594,1738771848725,-500.0,0.00015391,2]
[351738596,1738771848735,-1041.75,0.00015391,2]
[351738598,1738771848746,-500.0,0.00015391,2]
[351738599,1738771848757,-500.0,0.00015391,2]
[351738602,1738771848768,-827.94,0.00015391,2]
[351738604,1738771848778,-500.0,0.00015391,2]
[351738606,1738771848789,-431.65630059,0.00015391,2]
[351738608,1738771848801,-500.0,0.00015391,2]
[351738610,1738771848814,-1543.04,0.00015391,2]
[351738612,1738771848825,-836.82,0.00015391,2]
[351738614,1738771848836,-500.0,0.00015391,2]
[351738616,1738771848847,-1748.68,0.00015391,2]
[351738618,1738771848859,-500.0,0.00015391,2]
[351738620,1738771848870,-500.0,0.00015391,2]
[351738622,1738771848880,-500.0,0.00015391,2]
[351738624,1738771848893,-180.14438665,0.00015391,2]
[351738626,1738771848903,-500.0,0.00015391,2]
[351738628,1738771848915,-500.0,0.00015391,2]
[351738630,1738771848926,-634.6,0.00015391,2]
[351738632,1738771848937,-188.0,0.00015391,2]
[351738634,1738771848947,-231.74917396,0.00015391,2]
[351738636,1738771848958,-500.0,0.00015391,2]
[351738638,1738771848969,-500.0,0.00015391,2]
[351738641,1738771848981,-500.0,0.00015391,2]
[351738642,1738771848991,-500.0,0.00015391,2]
[351738644,1738771849001,-500.0,0.00015391,2]
[351738646,1738771849011,-500.0,0.00015391,2]
[351738648,1738771849022,-500.0,0.00015391,2]
[351738650,1738771849032,-500.0,0.00015391,2]
[351738652,1738771849043,-500.0,0.00015391,2]
[351738654,1738771849053,-500.0,0.00015391,2]
[351738656,1738771849066,-500.0,0.00015391,2]
[351738658,1738771849076,-507.34960727,0.00015391,2]
[351738660,1738771849087,-1059.33,0.00015391,2]
[351738662,1738771849097,-500.0,0.00015391,2]
[351738664,1738771849108,-500.0,0.00015391,2]
[351738666,1738771849119,-500.0,0.00015391,2]
[351738668,1738771849130,-500.0,0.00015391,2]
[351738670,1738771849140,-300.0,0.00015391,2]
[351738672,1738771849151,-500.0,0.00015391,2]
[351738674,1738771849161,-500.0,0.00015391,2]
[351738676,1738771849172,-500.0,0.00015391,2]
[351738678,1738771849183,-561.7,0.00015391,2]
[351738680,1738771849193,-500.0,0.00015391,2]
[351738682,1738771849203,-513.01,0.00015391,2]
[351738684,1738771849214,-500.0,0.00015391,2]
[351738686,1738771849224,-500.0,0.00015391,2]
[351738689,1738771849235,-500.0,0.00015391,2]
[351738690,1738771849244,-500.0,0.00015391,2]
[351738691,1738771849254,-500.0,0.00015391,2]
[351738692,1738771849264,-500.0,0.00015391,2]
[351738693,1738771849274,-500.0,0.00015391,2]
[351738694,1738771849284,-593.91,0.00015391,2]
[351738695,1738771849293,-500.0,0.00015391,2]
[351738696,1738771849303,-500.0,0.00015391,2]
[351738697,1738771849315,-500.0,0.00015391,2]
[351738698,1738771849324,-1124.74,0.00015391,2]
[351738699,1738771849334,-784.33,0.00015391,2]
[351738700,1738771849343,-500.0,0.00015391,2]
[351738701,1738771849353,-500.0,0.00015391,2]
[351738702,1738771849363,-500.0,0.00015391,2]
[351738703,1738771849372,-500.0,0.00015391,2]
[351738704,1738771849383,-500.0,0.00015391,2]
[351738705,1738771849393,-1884.0,0.00015391,2]
[351738706,1738771849403,-500.0,0.00015391,2]
[351738707,1738771849412,-500.0,0.00015391,2]
[351738708,1738771849422,-1734.25,0.00015391,2]
[351738709,1738771849432,-500.0,0.00015391,2]
[351738710,1738771849442,-500.0,0.00015391,2]
[351738711,1738771849452,-640.05,0.00015391,2]
[351738712,1738771849462,-831.69,0.00015391,2]
[351738713,1738771849472,-1000.0,0.00015391,2]
[351738714,1738771849481,-500.0,0.00015391,2]
[351738715,1738771849491,-500.0,0.00015391,2]
[351738716,1738771849501,-1068.34,0.00015391,2]
[351738717,1738771849510,-500.0,0.00015391,2]
[351738718,1738771849520,-500.0,0.00015391,2]
[351738719,1738771849530,-500.0,0.00015391,2]
[351738720,1738771849540,-500.0,0.00015391,2]
[351738721,1738771849550,-500.0,0.00015391,2]
[351738722,1738771849562,-500.0,0.00015391,2]
[351738723,1738771849572,-500.0,0.00015391,2]
[351738725,1738771849583,-500.0,0.00015391,2]
[351738727,1738771849592,-500.0,0.00015391,2]
[351738728,1738771849603,-500.0,0.00015391,2]
[351738730,1738771849612,-500.0,0.00015391,2]
[351738732,1738771849622,-500.0,0.00015391,2]
[351738734,1738771849632,-591.57814628,0.00015391,2]
[351738736,1738771849642,-500.0,0.00015391,2]
[351738738,1738771849651,-500.0,0.00015391,2]
[351738740,1738771849661,-500.0,0.00015391,2]
[351738742,1738771849671,-500.0,0.00015391,2]
[351738744,1738771849680,-347.86449026,0.00015391,2]
[351738746,1738771849690,-500.0,0.00015391,2]
[351738748,1738771849699,-1039.05,0.00015391,2]
[351738750,1738771849712,-607.46858783,0.00015391,2]
[351738751,1738771849723,-500.0,0.00015391,2]
[351738752,1738771849732,-527.36,0.00015391,2]
[351738753,1738771849741,-500.0,0.00015391,2]
[351738754,1738771849752,-500.0,0.00015391,2]
[351738755,1738771849761,-151.0,0.00015391,2]
[351738756,1738771849771,-151.899016,0.00015391,2]
[351738757,1738771849781,-1445.05,0.00015391,2]
[351738758,1738771849791,-608.51564115,0.00015391,2]
[351738759,1738771849800,-500.0,0.00015391,2]
[351738760,1738771849812,-500.0,0.00015391,2]
[351738761,1738771849822,-500.0,0.00015391,2]
[351738762,1738771849831,-1110.14,0.00015391,2]
[351738763,1738771849841,-500.0,0.00015391,2]
[351738764,1738771849851,-500.0,0.00015391,2]
[351738765,1738771849862,-761.99,0.00015391,2]
[351738766,1738771849871,-500.0,0.00015391,2]
[351738767,1738771849881,-305.44211751,0.00015391,2]
[351738768,1738771849892,-500.0,0.00015391,2]
[351738769,1738771849902,-500.0,0.00015391,2]
[351738770,1738771849912,-500.0,0.00015391,2]
[351738771,1738771849922,-500.0,0.00015391,2]
[351738772,1738771849932,-151.0,0.00015391,2]
[351738773,1738771849942,-500.0,0.00015391,2]
[351738774,1738771849953,-500.0,0.00015391,2]
[351738775,1738771849962,-151.0,0.00015391,2]
[351738776,1738771849971,-1055.49,0.00015391,2]
[351738777,1738771849981,-151.0,0.00015391,2]
[351738778,1738771849991,-500.0,0.00015391,2]
[351738779,1738771850001,-500.0,0.00015391,2]